bitfinex/quotes_ETHUSD_20250129
["timestamp","ask_amount","ask_price","bid_price","bid_amount"]
[1738148601173,2.12483578,3135.6,3135.5,0.05608047]
[1738148601381,2.12483578,3135.6,3134.8,0.55]
[1738148601676,2.12483578,3135.6,3135.0,0.55]
[1738148602176,2.12483578,3135.6,3135.2,0.55]
[1738148602580,2.12483578,3135.6,3135.3,0.05706899]
[1738148602983,2.12483578,3135.6,3134.8,0.55]
[1738148603449,2.12483578,3135.6,3135.0,0.55]
[1738148603651,2.12483578,3135.6,3135.2,0.55]
[1738148603953,0.03188011,3135.5,3135.3,0.05706899]
[1738148604348,0.03188011,3135.5,3134.8,0.55]
[1738148604543,0.03188011,3135.5,3135.4,0.05519621]
[1738148604772,0.03188011,3135.5,3134.8,0.55]
[1738148604972,0.03188011,3135.5,3135.4,0.05519621]
[1738148605171,0.26880006,3135.5,3134.8,0.55]
[1738148605367,0.03188011,3135.5,3135.4,0.05519621]
[1738148605584,0.03188011,3135.5,3134.8,0.55]
[1738148606121,2.12483578,3135.6,3135.0,0.55]
[1738148606494,2.12483578,3135.6,3135.2,0.55]
[1738148606872,2.12483578,3135.6,3135.3,0.05522053]
[1738148607331,2.12483578,3135.6,3134.8,0.55]
[1738148607485,0.79798011,3135.5,3134.4,0.8258]
[1738148607689,2.37209947,3135.5,3135.4,0.05519621]
[1738148608873,2.37209947,3135.5,3134.5,0.55]
[1738148609513,2.12773578,3135.5,3134.5,0.55]
[1738148609712,2.12773578,3135.5,3134.7,0.55]
[1738148610122,2.12773578,3135.5,3134.9,0.55]
[1738148610327,0.03188011,3135.4,3134.9,0.55]
[1738148610531,0.03188011,3135.4,3135.1,0.55]
[1738148610926,0.03188011,3135.4,3135.2,0.05536972]
[1738148611098,2.12773578,3135.5,3135.2,0.05536972]
[1738148611436,0.03188011,3135.4,3135.2,0.05536972]
[1738148611931,2.12773578,3135.5,3135.2,0.05536972]
[1738148613183,2.12773578,3135.5,3135.3,0.55]
[1738148613184,1.36163578,3135.5,3135.3,0.55]
[1738148613602,1.36163578,3135.5,3135.4,0.60532107]
[1738148614850,1.39351589,3135.7,3135.4,0.60532107]
[1738148617950,1.36163578,3135.7,3135.5,0.55]
[1738148618292,1.36163578,3135.7,3135.6,0.60356445]
[1738148618986,1.36163578,3135.7,3135.6,0.05356445]
[1738148619226,1.64085054,3135.7,3134.8,0.7546]
[1738148619529,0.7815,3135.5,3134.9,0.05373473]
[1738148619703,0.03188011,3135.4,3134.8,0.7546]
[1738148619909,0.03188011,3135.4,3135.1,0.55]
[1738148620339,0.7815,3135.5,3135.2,0.05366175]
[1738148620519,0.7815,3135.5,3135.0,0.55]
[1738148620723,0.81338011,3135.5,3135.3,0.05363742]
[1738148621096,0.81338011,3135.5,3135.4,0.0536131]
[1738148621381,1.05880318,3135.5,3134.9,0.55]
[1738148621588,1.05880318,3135.5,3135.4,0.0536131]
[1738148622889,1.05880318,3135.5,3134.9,0.55]
[1738148623063,1.05880318,3135.5,3135.4,0.0536131]
[1738148623238,1.05880318,3135.5,3134.9,0.55]
[1738148623437,1.05880318,3135.5,3135.0,0.0537104]
[1738148623640,2.42043896,3135.5,3135.0,0.0537104]
[1738148625789,0.8137,3135.3,3135.0,0.0537104]
[1738148625950,0.03188011,3135.2,3135.0,0.0537104]
[1738148626134,0.03188011,3135.2,3134.5,0.7909]
[1738148626337,1.39351589,3135.2,3134.5,0.7909]
[1738148626571,1.39351589,3135.2,3134.6,0.6039162]
[1738148626834,1.36163578,3135.2,3134.6,0.6039162]
[1738148630474,1.36163578,3135.2,3134.6,0.63581673]
[1738148631664,1.36163578,3135.2,3134.8,0.55]
[1738148631869,1.36163578,3135.2,3135.0,0.55]
[1738148633582,1.39351589,3135.2,3135.1,0.05200761]
[1738148633877,1.39351589,3135.2,3134.7,0.55]
[1738148634257,1.39351589,3135.2,3134.9,0.55]
[1738148634580,1.60894748,3135.2,3135.0,0.05216212]
[1738148638085,1.36163578,3135.2,3135.0,0.05216212]
[1738148641375,1.36163578,3135.2,3135.1,0.55]
[1738148641744,1.36163578,3135.2,3135.1,0.60224969]
[1738148647576,1.49607962,3135.7,3135.1,0.60224969]
[1738148648565,0.03188011,3135.6,3135.1,0.60224969]
[1738148648766,0.7873,3135.5,3135.1,0.60224969]
[1738148648967,0.03188011,3135.4,3135.1,0.60224969]
[1738148650156,0.03188011,3135.4,3134.7,0.55]
[1738148650559,0.03188011,3135.4,3134.9,0.55]
[1738148651058,0.03188011,3135.4,3135.1,0.55]
[1738148651392,0.03188011,3135.4,3135.2,0.04889733]
[1738148651577,1.39351589,3135.4,3135.2,0.04889733]
[1738148651890,1.39351589,3135.4,3135.3,0.55]
[1738148651891,1.36163578,3135.4,3135.3,0.55]
[1738148652188,0.7803,3135.8,3135.3,0.55]
[1738148652392,0.7501,3136.1,3135.3,0.63076451]
[1738148652590,1.36163578,3136.2,3135.5,0.55]
[1738148652897,1.36163578,3136.2,3135.7,0.55]
[1738148653200,1.36163578,3136.2,3135.9,1.3139]
[1738148653653,1.36163578,3136.2,3136.1,0.55]
[1738148653857,0.03188011,3137.1,3136.1,0.55]
[1738148653858,0.7843,3136.9,3136.1,0.55]
[1738148654080,1.60810947,3136.8,3136.1,0.59845066]
[1738148654355,1.60810947,3136.8,3135.9,0.7639]
[1738148654356,2.22435444,3136.8,3136.3,0.55]
[1738148654784,1.57622936,3136.8,3136.0,0.55]
[1738148655098,1.39351589,3136.8,3136.0,0.55]
[1738148655304,1.39351589,3136.8,3136.1,0.04845066]
[1738148655601,1.36163578,3136.8,3136.4,0.55]
[1738148655971,1.36163578,3136.8,3136.6,0.55]
[1738148656302,0.03188011,3136.7,3136.6,0.55]
[1738148656497,0.03188011,3136.7,3136.4,0.55]
[1738148657790,1.39351589,3136.8,3136.4,0.55]
[1738148658189,1.36163578,3136.8,3136.4,0.55]
[1738148663587,1.36163578,3136.8,3136.6,0.55]
[1738148663912,1.36163578,3137.2,3136.6,0.55]
[1738148664106,1.36163578,3137.2,3136.8,0.55]
[1738148664308,1.39351589,3137.2,3136.8,0.55]
[1738148665086,1.39351589,3137.2,3136.9,0.04714467]
[1738148665410,1.60820748,3137.2,3136.9,0.04714467]
[1738148668513,0.8307,3137.1,3136.4,0.55]
[1738148668713,0.03188011,3137.0,3136.4,0.55]
[1738148669690,0.8179,3136.9,3136.0,0.7818]
[1738148669903,0.03188011,3136.8,3136.1,0.04733912]
[1738148670134,0.22114159,3136.7,3136.1,0.04733912]
[1738148670431,0.7906,3136.6,3135.8,0.7545]
[1738148670756,0.7906,3136.6,3135.9,0.59719264]
[1738148674226,2.15223578,3136.6,3135.9,0.59719264]
[1738148676622,1.36163578,3136.6,3136.0,0.03188571]
[1738148676803,1.36163578,3136.6,3136.2,0.55]
[1738148677198,1.36163578,3136.6,3136.4,0.55]
[1738148677637,1.36163578,3136.6,3136.5,0.59706303]
[1738148680274,2.11663578,3136.9,3136.6,0.55]
[1738148680773,2.11663578,3136.9,3136.7,0.04701443]
[1738148682339,2.14851589,3136.9,3136.7,0.04701443]
[1738148682557,2.11663578,3136.9,3136.7,0.04701443]
[1738148683648,1.36163578,3136.9,3136.8,0.55]
[1738148683872,1.36163578,3137.1,3136.8,0.55]
[1738148684063,1.36163578,3137.1,3136.7,0.55]
[1738148684266,1.36163578,3137.1,3137.0,0.55]
[1738148684660,1.36163578,3137.1,3137.0,0.59420982]
[1738148686883,1.39351589,3137.1,3137.0,0.59420982]
[1738148688158,1.36163578,3137.1,3137.0,0.59420982]
[1738148688601,1.36163578,3137.6,3137.0,1.35280982]
[1738148688788,2.14173578,3137.8,3137.0,1.35280982]
[1738148688968,1.4176402,3137.8,3137.0,1.35280982]
[1738148689147,0.7801,3137.8,3137.0,1.35280982]
[1738148689348,0.7801,3137.8,3137.1,0.03187314]
[1738148689588,0.7801,3137.8,3137.3,0.55]
[1738148689965,0.7801,3137.8,3137.5,0.55]
[1738148690483,0.7801,3137.8,3137.6,0.04235685]
[1738148691047,0.65170776,3138.0,3137.6,0.04235685]
[1738148691246,1.48150776,3138.0,3137.6,0.04235685]
[1738148691948,1.48150776,3138.0,3137.5,1.3191]
[1738148692255,1.48150776,3138.0,3137.5,0.5691]
[1738148694475,1.26734458,3137.9,3137.1,0.29785641]
[1738148694779,0.7759,3137.9,3137.2,0.58900579]
[1738148694988,2.13753578,3137.9,3137.2,0.58900579]
[1738148695208,2.13753578,3137.9,3137.3,0.7653]
[1738148695407,1.36163578,3137.9,3137.4,0.55]
[1738148695614,0.15814844,3138.8,3137.4,0.55]
[1738148695615,0.7852,3138.2,3137.4,0.58772855]
[1738148695809,0.7852,3138.2,3137.4,0.61959647]
[1738148696012,0.03188011,3138.1,3137.4,0.58772855]
[1738148696685,1.46412654,3138.2,3137.4,0.58772855]
[1738148696885,1.74670277,3138.2,3137.4,0.58772855]
[1738148699496,1.74670277,3138.2,3137.4,0.03772855]
[1738148699497,0.96150277,3138.2,3137.4,0.03772855]
[1738148699667,0.7921,3138.1,3137.4,0.03772855]
[1738148699863,0.7921,3137.9,3137.4,0.03772855]
[1738148700120,0.7921,3137.7,3136.8,0.7561]
[1738148700266,0.03188011,3137.6,3136.8,0.7561]
[1738148700997,0.03188011,3137.6,3136.9,0.55]
[1738148701374,0.03188011,3137.6,3137.0,0.03774456]
[1738148701786,0.7921,3137.7,3137.1,0.8152]
[1738148702109,0.7921,3137.7,3137.1,0.85303932]
[1738148702796,0.03188011,3137.6,3137.1,0.85303932]
[1738148703002,0.7921,3137.7,3137.1,0.85303932]
[1738148703499,0.03188011,3137.6,3137.1,0.85303932]
[1738148703702,0.7921,3137.7,3137.1,0.85303932]
[1738148703875,2.15373578,3137.7,3137.1,0.85303932]
[1738148704075,0.03188011,3137.6,3137.1,0.85303932]
[1738148704276,2.15373578,3137.7,3137.1,0.85303932]
[1738148705866,2.18561589,3137.7,3137.1,0.85303932]
[1738148706361,2.15373578,3137.7,3137.1,0.85303932]
[1738148706679,2.43343673,3137.7,3137.1,0.85303932]
[1738148709498,2.15373578,3137.7,3137.2,0.55]
[1738148709727,2.15373578,3137.7,3137.3,0.7538]
[1738148709728,1.36163578,3137.7,3137.3,0.7538]
[1738148709930,1.36163578,3138.1,3137.6,0.55]
[1738148710201,1.36163578,3138.1,3137.7,0.03767732]
[1738148711001,0.7551,3138.5,3137.8,0.55]
[1738148711167,2.11673578,3138.5,3137.9,0.7538]
[1738148711364,2.32840936,3138.5,3137.9,0.79142875]
[1738148711593,2.32840936,3138.5,3137.9,0.7538]
[1738148711793,0.64655474,3138.1,3138.0,0.03760446]
[1738148712395,2.32840936,3138.5,3138.0,0.03760446]
[1738148712714,1.36163578,3138.5,3138.1,0.55]
[1738148712893,1.36163578,3138.5,3138.2,0.8021]
[1738148713078,1.36163578,3138.5,3138.2,0.83943405]
[1738148713283,1.39351589,3138.5,3138.2,0.83943405]
[1738148713909,1.36163578,3138.5,3138.2,0.83943405]
[1738148715795,0.03188011,3138.7,3138.2,0.83943405]
[1738148716597,0.64106735,3138.8,3138.2,0.83943405]
[1738148717098,0.03188011,3138.7,3138.2,0.8021]
[1738148717610,0.64106735,3138.8,3138.3,0.03730436]
[1738148718116,0.64106735,3138.8,3138.2,0.8021]
[1738148719815,0.03188011,3138.7,3138.2,0.8021]
[1738148720025,0.64106735,3138.8,3138.2,0.8021]
[1738148720199,0.64106735,3138.8,3138.3,0.03690399]
[1738148720386,0.8086,3139.1,3138.2,0.8021]
[1738148720920,0.8086,3139.1,3138.3,0.03690399]
[1738148721614,1.99751319,3139.0,3138.2,0.8021]
[1738148724288,1.99751319,3139.0,3138.4,0.55]
[1738148724521,1.99751319,3139.0,3138.5,0.8311]
[1738148724722,1.99751319,3139.0,3138.5,0.86775528]
[1738148725046,0.03188011,3138.9,3138.5,0.8311]
[1738148726194,0.03188011,3138.9,3137.4,3.264]
[1738148726195,1.03441944,3138.9,3137.4,3.264]
[1738148726496,2.19311589,3138.9,3137.8,0.8261]
[1738148726801,2.19311589,3138.9,3137.9,0.58674147]
[1738148727002,2.19311589,3138.9,3137.9,0.03674147]
[1738148727200,0.03188011,3138.8,3138.1,0.55]
[1738148727411,2.16123578,3138.9,3138.1,0.55]
[1738148727706,2.19311589,3138.9,3138.3,0.55]
[1738148728119,2.19311589,3138.9,3138.4,0.03662006]
[1738148728426,2.19311589,3138.9,3138.1,0.55]
[1738148728635,2.19311589,3138.9,3138.5,0.03659579]
[1738148728797,2.19311589,3138.9,3138.1,0.55]
[1738148728993,2.19311589,3138.9,3138.6,0.03657151]
[1738148729190,2.19311589,3138.9,3138.1,0.55]
[1738148729390,2.19311589,3138.9,3138.7,0.03654724]
[1738148729626,2.19311589,3138.9,3138.1,0.55]
[1738148729828,2.19311589,3138.9,3138.8,0.03652297]
[1738148730030,2.47601522,3138.9,3138.1,0.55]
[1738148730530,2.47601522,3138.9,3138.2,0.03666862]
[1738148732032,2.47601522,3138.9,3138.2,0.08630224]
[1738148733949,2.19311589,3138.9,3138.2,0.08630224]
[1738148735138,2.16123578,3138.9,3138.2,0.08630224]
[1738148735468,2.16123578,3138.9,3138.3,0.779]
[1738148735834,2.16123578,3138.9,3138.4,0.08615739]
[1738148736668,2.19311589,3138.9,3138.4,0.08615739]
[1738148736871,2.16123578,3138.9,3138.4,0.08615739]
[1738148737046,1.36163578,3138.9,3138.4,0.08615739]
[1738148740954,1.36163578,3138.9,3138.5,0.55]
[1738148741217,1.36163578,3138.9,3138.6,0.7539]
[1738148741680,1.36163578,3138.9,3138.7,0.08603114]
[1738148742187,0.03188011,3138.8,3138.7,0.08603114]
[1738148742477,0.31287944,3138.8,3137.5,1.0568]
[1738148742657,0.03188011,3138.8,3138.7,0.08594458]
[1738148742856,0.03188011,3138.8,3138.0,0.7928]
[1738148743067,0.8167,3138.7,3137.8,0.7928]
[1738148743269,0.03188011,3138.6,3137.8,0.7928]
[1738148743487,0.03188011,3138.6,3138.1,0.29829019]
[1738148744787,0.03188011,3138.6,3137.8,0.7928]
[1738148745491,1.39351589,3138.6,3137.8,0.7928]
[1738148745693,1.61453748,3138.6,3137.8,0.7928]
[1738148747425,0.62673227,3138.3,3137.8,0.7928]
[1738148749000,1.61453748,3138.6,3137.8,0.7928]
[1738148749398,0.65116367,3138.4,3137.9,0.08615147]
[1738148749900,0.65116367,3138.4,3137.9,0.55]
[1738148750698,0.68304378,3138.4,3137.9,0.55]
[1738148751476,0.65116367,3138.4,3137.9,0.55]
[1738148752276,0.68304378,3138.4,3137.9,0.55]
[1738148753106,0.65116367,3138.4,3137.9,0.55]
[1738148753602,0.65116367,3138.4,3138.0,0.0861256]
[1738148756582,0.85278011,3138.3,3138.0,0.0861256]
[1738148756794,0.85278011,3138.3,3137.5,0.55]
[1738148757103,0.85278011,3138.3,3137.7,0.55]
[1738148757464,0.85278011,3138.3,3137.8,0.08619897]
[1738148757892,0.85278011,3138.3,3137.0,0.8153]
[1738148758303,0.85278011,3138.3,3137.1,0.08074511]
[1738148759403,0.85278011,3138.3,3136.9,0.55]
[1738148759603,0.85278011,3138.3,3137.1,0.55]
[1738148759905,0.85278011,3138.3,3137.2,0.080941]
[1738148760202,0.8197,3138.2,3137.2,0.080941]
[1738148760403,0.85158011,3138.1,3137.2,0.080941]
[1738148760703,0.7717,3137.7,3137.2,0.080941]
[1738148760902,0.03188011,3137.6,3137.2,0.080941]
[1738148761668,0.7948,3137.5,3137.2,0.080941]
[1738148761877,0.03188011,3137.4,3136.6,0.7592]
[1738148762199,0.03188011,3137.4,3136.7,0.55]
[1738148762512,0.03188011,3137.4,3136.8,0.07896007]
[1738148763908,0.7948,3137.5,3136.8,0.07896007]
[1738148766130,0.82668011,3137.5,3136.8,0.07896007]
[1738148766927,0.82668011,3137.5,3136.6,0.7592]
[1738148767127,0.82668011,3137.5,3136.0,1.3306]
[1738148767436,0.82668011,3137.5,3136.2,0.55]
[1738148767804,0.82668011,3137.5,3136.4,0.55]
[1738148768004,0.82668011,3137.5,3136.5,0.07987643]
[1738148768749,0.7723,3137.3,3136.1,0.55]
[1738148768888,0.7723,3136.7,3136.6,0.07961202]
[1738148769089,0.7723,3136.7,3136.1,0.55]
[1738148769338,0.7723,3136.7,3136.6,0.07961202]
[1738148769721,0.7723,3136.7,3136.1,0.55]
[1738148769918,0.7723,3136.7,3136.6,0.07961202]
[1738148770440,0.7723,3136.7,3136.1,0.55]
[1738148770627,0.7723,3136.7,3136.6,0.07961202]
[1738148770938,0.7723,3138.0,3136.1,0.5818826]
[1738148771091,0.7723,3137.8,3136.6,0.07961202]
[1738148771331,0.7723,3137.6,3136.1,0.55]
[1738148771534,0.7723,3137.4,3136.7,0.07958613]
[1738148771759,0.80418011,3137.3,3136.1,0.55]
[1738148771961,0.65364022,3137.0,3136.8,0.07956025]
[1738148772158,0.8175,3136.9,3136.1,0.55]
[1738148772382,0.84938011,3136.9,3136.1,0.55]
[1738148772540,0.84938011,3136.9,3136.2,0.07971559]
[1738148773669,0.8175,3136.9,3136.2,0.07971559]
[1738148774271,0.84938011,3136.9,3136.2,0.07971559]
[1738148778271,0.8175,3136.9,3136.2,0.07971559]
[1738148780349,0.84938011,3136.9,3136.2,0.07971559]
[1738148781332,0.84938011,3136.9,3135.7,0.8136]
[1738148781533,0.84938011,3136.9,3136.3,0.07674543]
[1738148781759,0.84938011,3136.9,3135.7,0.8136]
[1738148781975,0.84938011,3136.9,3136.4,0.07671954]
[1738148782270,0.84938011,3136.9,3135.4,0.761]
[1738148782676,0.84938011,3136.9,3135.5,0.07466084]
[1738148783057,0.84938011,3136.9,3135.3,0.55]
[1738148783262,0.84938011,3136.9,3135.5,0.55]
[1738148783462,0.8005,3136.7,3135.5,0.55]
[1738148783658,0.03188011,3136.6,3135.6,0.07501211]
[1738148783868,0.2,3137.5,3135.6,0.07501211]
[1738148783869,0.16635856,3137.0,3135.6,0.07501211]
[1738148784040,0.825,3136.8,3135.6,0.07501211]
[1738148784241,0.825,3136.6,3135.6,0.07501211]
[1738148784467,0.825,3136.6,3135.7,0.55]
[1738148784468,0.03188011,3136.5,3135.7,0.55]
[1738148785147,0.03188011,3136.5,3135.8,0.0749603]
[1738148785678,0.64859551,3136.4,3135.8,0.0749603]
[1738148788275,0.825,3136.6,3135.9,1.3098]
[1738148788575,0.825,3136.6,3136.0,0.03188522]
[1738148788748,0.825,3136.6,3136.1,0.55]
[1738148788948,0.65030529,3137.1,3136.2,0.03188305]
[1738148789159,0.03188011,3138.2,3136.5,0.55]
[1738148789160,0.8032,3137.0,3136.5,0.55]
[1738148789481,0.43016103,3138.3,3136.8,0.7598]
[1738148789482,1.42790674,3137.6,3136.8,0.7598]
[1738148789684,0.8032,3137.6,3136.9,0.58187374]
[1738148789978,0.8032,3137.6,3136.9,0.65633291]
[1738148791383,8.42166667,3143.4,3137.0,0.8325]
[1738148791384,0.62260013,3137.9,3137.0,0.8325]
[1738148791687,0.7973,3138.3,3137.3,0.55]
[1738148791885,0.7973,3138.3,3137.5,0.55]
[1738148792074,0.7973,3138.3,3137.6,0.03186638]
[1738148792383,0.7973,3138.3,3137.7,0.55]
[1738148792680,0.7973,3138.3,3137.8,0.07365331]
[1738148792886,0.7973,3138.3,3137.9,0.55]
[1738148793477,0.64009141,3138.2,3138.0,0.07288814]
[1738148803978,0.825,3138.5,3138.0,0.07288814]
[1738148803979,0.825,3138.5,3138.0,0.1047537]
[1738148804160,0.799,3139.2,3138.0,0.07288814]
[1738148804494,0.799,3139.2,3137.9,1.3809]
[1738148805085,0.64634864,3138.5,3138.0,0.07228307]
[1738148805291,0.8155,3138.6,3138.0,0.07228307]
[1738148805668,0.7599,3139.2,3138.0,0.104147]
[1738148806706,0.6485176,3138.6,3138.0,0.104147]
[1738148806902,0.6485176,3138.6,3138.0,0.07228307]
[1738148807198,0.7599,3139.2,3138.2,0.7831]
[1738148807399,0.7599,3139.2,3138.3,0.62217848]
[1738148807586,0.7599,3139.2,3138.4,0.03185989]
[1738148807788,0.7599,3139.2,3138.5,0.07205115]
[1738148808466,0.7599,3139.2,3138.3,0.55]
[1738148808667,0.65253655,3138.8,3138.6,0.07202529]
[1738148808868,0.65253655,3138.8,3138.3,0.55]
[1738148809083,0.65253655,3138.8,3138.7,0.07199944]
[1738148809368,0.65253655,3138.8,3138.3,0.55]
[1738148809568,0.65253655,3138.8,3138.7,0.07199944]
[1738148809767,0.65253655,3138.8,3138.3,0.55]
[1738148809970,0.65253655,3138.8,3138.7,0.07199944]
[1738148810482,0.65253655,3138.8,3138.3,0.55]
[1738148810685,0.65253655,3138.8,3138.7,0.07199944]
[1738148810917,0.65253655,3138.8,3138.7,0.8189]
[1738148811128,0.65253655,3138.8,3138.7,0.89089944]
[1738148811404,0.7599,3139.2,3138.7,0.89089944]
[1738148812279,0.7597,3139.8,3138.8,0.58185794]
[1738148812482,0.7597,3139.8,3138.8,0.65383152]
[1738148813276,0.03188011,3139.7,3138.8,0.62197358]
[1738148813631,0.62980725,3139.6,3138.8,0.62197358]
[1738148814884,0.62980725,3139.6,3138.9,0.03185476]
[1738148815088,0.62980725,3139.6,3138.9,0.10345153]
[1738148818414,0.62980725,3139.6,3138.9,0.07159677]
[1738148818909,0.62980725,3139.6,3139.0,0.03185445]
[1738148819114,0.62980725,3139.6,3139.1,0.8277]
[1738148819329,0.62980725,3139.6,3139.1,0.89862957]
[1738148820037,0.7597,3139.8,3139.1,0.93048229]
[1738148820877,0.7597,3139.8,3139.1,0.89862957]
[1738148821928,1.40414748,3139.8,3139.2,0.55]
[1738148822129,1.40414748,3139.8,3139.2,0.62090373]
[1738148823135,0.03188011,3139.7,3139.2,0.62090373]
[1738148823681,1.40414748,3139.8,3139.2,0.62090373]
[1738148826422,0.03188011,3139.7,3139.2,0.62090373]
[1738148827103,0.03188011,3139.7,3139.2,0.07090373]
[1738148827506,0.03188011,3139.7,3138.8,0.7672]
[1738148827507,1.40414748,3139.8,3138.8,0.7672]
[1738148827739,0.03188011,3139.7,3139.3,0.07071595]
[1738148827916,1.40414748,3139.8,3138.8,0.7672]
[1738148828116,0.03188011,3139.7,3139.4,0.07069011]
[1738148828416,0.03188011,3139.7,3138.8,0.7672]
[1738148828585,1.40414748,3139.8,3139.5,0.07066427]
[1738148828788,1.40414748,3139.8,3138.9,0.55]
[1738148828990,0.64444748,3139.8,3139.6,0.07063843]
[1738148829193,0.64444748,3139.8,3139.1,0.55]
[1738148829813,0.64444748,3139.8,3139.2,0.07080117]
[1738148830744,0.03188011,3139.7,3139.2,0.07080117]
[1738148833472,0.64444748,3139.8,3139.2,0.07080117]
[1738148833781,0.03188011,3139.7,3139.2,0.07080117]
[1738148834076,0.64444748,3139.8,3139.2,0.07080117]
[1738148834360,0.64444748,3139.8,3139.3,0.07077532]
[1738148834660,0.64444748,3139.8,3139.2,0.7788]
[1738148834969,0.64444748,3139.8,3139.3,0.07066738]
[1738148835275,0.64444748,3139.8,3139.4,0.07064154]
[1738148835635,0.64203384,3139.8,3139.5,0.07061569]
[1738148836140,0.64203384,3139.8,3139.6,0.07058985]
[1738148836365,0.64203384,3139.8,3139.2,0.7788]
[1738148836566,0.64203384,3139.8,3139.7,0.07056402]
[1738148836754,0.64203384,3139.8,3139.2,0.7788]
[1738148836942,0.64203384,3139.8,3139.7,0.07056402]
[1738148837141,0.64203384,3139.8,3139.2,0.7788]
[1738148837341,0.64203384,3139.8,3139.7,0.07056402]
[1738148837548,0.64203384,3139.8,3139.2,0.7788]
[1738148837767,0.64203384,3139.8,3139.7,0.07056402]
[1738148837942,0.64203384,3139.8,3139.2,0.7788]
[1738148838142,0.64203384,3139.8,3139.7,0.07056402]
[1738148838342,0.64203384,3139.8,3139.2,0.7788]
[1738148838566,0.64203384,3139.8,3139.7,0.07056402]
[1738148838765,0.64203384,3139.8,3139.2,0.7788]
[1738148838989,0.64203384,3139.8,3139.7,0.07056402]
[1738148839387,0.64203384,3139.8,3139.2,0.7788]
[1738148839584,0.03188011,3139.7,3139.2,0.7788]
[1738148839748,0.64203384,3139.8,3139.2,0.7788]
[1738148842645,0.03188011,3139.7,3138.8,0.55]
[1738148843289,0.7713,3139.6,3138.8,0.55]
[1738148843450,0.03188011,3139.5,3138.8,0.55]
[1738148843644,0.03188011,3139.5,3138.9,0.0707114]
[1738148846661,0.7713,3139.6,3138.9,0.0707114]
[1738148846862,0.03188011,3139.5,3138.9,0.0707114]
[1738148847889,0.63483763,3139.3,3138.9,0.0707114]
[1738148848498,0.7892,3139.1,3138.9,0.0707114]
[1738148848670,0.7892,3139.1,3138.2,0.8057]
[1738148848870,0.7892,3138.9,3138.2,0.8057]
[1738148849072,0.03188011,3138.8,3138.2,0.8057]
[1738148849269,0.03188011,3138.8,3138.3,0.06860802]
[1738148849668,0.7892,3138.9,3138.1,0.58186316]
[1738148849887,0.7892,3138.9,3138.4,0.06858217]
[1738148850194,0.7892,3138.9,3138.5,0.06855631]
[1738148850552,0.7892,3138.9,3138.1,0.03186316]
[1738148850553,0.7892,3138.9,3138.1,0.58186316]
[1738148850757,0.7892,3138.9,3138.6,0.06853045]
[1738148851082,0.7892,3138.9,3138.7,0.0685046]
[1738148851390,0.64994978,3138.8,3138.1,0.55]
[1738148852689,0.64994978,3138.8,3138.1,0.58186314]
[1738148854698,0.64994978,3138.8,3138.1,0.55]
[1738148856360,0.7892,3138.9,3138.2,0.5818631]
[1738148856578,0.7892,3138.9,3138.2,0.0318631]
[1738148856965,1.43778313,3138.9,3138.2,0.0318631]
[1738148857470,0.03188011,3138.8,3138.1,0.55]
[1738148858568,0.03188011,3138.8,3138.2,0.06863389]
[1738148859069,0.7611,3138.7,3138.2,0.06863389]
[1738148859402,0.7611,3138.5,3138.2,0.06863389]
[1738148859619,0.03188011,3138.4,3137.8,0.55]
[1738148859769,0.7611,3138.5,3138.3,0.06912551]
[1738148859970,0.7611,3138.5,3137.8,0.55]
[1738148860171,0.7611,3138.5,3138.4,0.06909965]
[1738148860404,0.7611,3138.5,3137.8,0.58186545]
[1738148860610,0.7611,3138.5,3138.4,0.06909965]
[1738148860774,0.7611,3138.5,3137.8,0.55]
[1738148861103,0.7611,3138.5,3138.4,0.06909965]
[1738148861407,0.7611,3138.5,3138.4,0.06920748]
[1738148861594,0.7611,3138.5,3137.8,0.55]
[1738148861794,0.7611,3138.5,3138.4,0.06920748]
[1738148861972,0.7611,3138.5,3137.8,0.55]
[1738148862172,0.7611,3138.5,3138.4,0.06921827]
[1738148862394,0.7611,3138.5,3137.8,0.55]
[1738148862566,0.7611,3138.5,3138.4,0.06921827]
[1738148862772,0.7611,3138.5,3137.8,0.55]
[1738148863010,0.7611,3138.5,3138.4,0.06921827]
[1738148863173,0.7611,3138.5,3137.8,0.55]
[1738148863373,0.7611,3138.5,3138.4,0.06921827]
[1738148863569,0.7611,3138.5,3137.1,0.262]
[1738148863811,0.7611,3138.5,3137.2,0.7697]
[1738148863812,0.03188011,3138.4,3137.2,0.7697]
[1738148865304,0.7611,3138.5,3137.5,0.55]
[1738148865482,0.7611,3138.5,3137.6,0.85556762]
[1738148865684,0.7611,3138.5,3137.7,0.55]
[1738148866114,0.62875349,3138.4,3137.7,0.55]
[1738148868407,0.62875349,3138.4,3137.7,0.58186491]
[1738148869612,0.62875349,3138.4,3137.7,0.55]
[1738148871607,0.7504,3138.2,3137.4,0.8074]
[1738148871917,0.7504,3138.2,3137.5,0.55]
[1738148873480,0.7504,3138.2,3137.6,0.06322529]
[1738148874315,0.03188011,3138.1,3137.6,0.06322529]
[1738148876180,0.8245,3138.0,3137.6,0.06322529]
[1738148892729,0.8245,3138.0,3137.7,0.55]
[1738148892930,0.785,3138.3,3137.9,0.55]
[1738148893116,0.785,3138.3,3138.0,0.06353164]
[1738148893328,0.62875349,3138.4,3138.0,0.06353164]
[1738148896330,0.82618011,3138.3,3138.0,0.06353164]
[1738148896549,0.82618011,3138.3,3137.4,0.7996]
[1738148896729,0.82618011,3138.3,3137.6,0.55]
[1738148896927,0.82618011,3138.3,3137.7,0.06351756]
[1738148897808,0.7943,3138.3,3137.7,0.03186719]
[1738148898051,0.7943,3138.3,3137.8,0.06349708]
[1738148900259,0.7943,3138.3,3137.9,0.55]
[1738148900466,0.7943,3138.3,3137.9,1.40016472]
[1738148900761,0.7943,3138.3,3138.0,0.06335908]
[1738148911545,0.62875349,3138.4,3138.0,0.09522397]
[1738148911760,0.62875349,3138.4,3138.1,0.7945]
[1738148911969,0.62875349,3138.4,3138.3,1.3445]
[1738148912175,0.62875349,3138.4,3138.3,2.15343795]
[1738148913644,0.8109,3139.2,3138.4,0.55]
[1738148913953,0.8109,3139.2,3138.6,0.55]
[1738148914277,0.8109,3139.2,3138.7,0.06281139]
[1738148915550,0.64780116,3138.8,3138.7,0.06281139]